bitfinex/quotes_ETHUSD_20220219
["timestamp","ask_amount","ask_price","bid_price","bid_amount"]
[1645279296983,0.00113025,2746.1,2745.4,0.3]
[1645279297223,0.00332759,2745.7,2745.4,0.3]
[1645279298019,0.5142348,2746.1,2745.4,0.3]
[1645279298418,0.00332759,2745.7,2745.4,0.3]
[1645279298620,0.00332759,2745.7,2745.4,1.21057]
[1645279299223,0.21795379,2746.0,2745.4,1.21057]
[1645279299418,0.00113025,2746.1,2745.4,1.21057]
[1645279299622,0.00332759,2745.7,2745.4,0.3]
[1645279300223,0.00332759,2745.7,2745.3,0.1821]
[1645279300436,0.21795121,2746.0,2745.1,1.2024]
[1645279300879,0.00332759,2745.7,2744.7,6.4408]
[1645279301079,0.00332759,2745.7,2744.7,2.9408]
[1645279301378,0.00332759,2745.7,2744.9,0.70743899]
[1645279301379,0.51515508,2745.6,2744.9,0.70743899]
[1645279301579,0.21795121,2745.5,2744.7,2.9408]
[1645279301884,0.00327834,2745.3,2744.5,3.2924]
[1645279302279,0.00327834,2745.3,2744.3,2.4976]
[1645279302681,0.00327834,2745.3,2744.5,0.60756369]
[1645279302880,0.67322443,2745.1,2744.5,0.60756369]
[1645279303181,0.67322443,2745.1,2744.6,1.30124679]
[1645279303182,0.00327843,2745.0,2744.6,1.30124679]
[1645279303981,0.21886766,2745.6,2745.1,0.00234399]
[1645279304382,0.24524537,2745.6,2745.1,0.00234399]
[1645279304634,0.21886766,2745.5,2745.1,0.00234399]
[1645279305823,0.21886766,2745.5,2745.1,1.30565796]
[1645279306025,0.21886766,2745.5,2745.1,0.00234399]
[1645279306425,0.21886766,2745.5,2745.1,4.80565697]
[1645279306621,0.21886766,2745.5,2745.2,1.30331298]
[1645279306822,0.00316295,2745.4,2745.3,1.30331298]
[1645279307023,0.00316295,2745.4,2745.1,1.30565697]
[1645279307222,0.00316295,2745.4,2745.2,1.30331298]
[1645279307423,0.00316295,2745.4,2745.1,1.30565697]
[1645279307622,0.21886766,2745.5,2745.2,1.30331298]
[1645279307827,0.21886766,2745.5,2745.3,1.30331298]
[1645279308024,0.00291119,2745.4,2745.1,0.00234399]
[1645279308572,0.00291119,2745.4,2745.1,1.30658802]
[1645279309073,0.00301318,2745.4,2745.1,1.30658802]
[1645279310177,0.21886766,2745.5,2745.1,1.30658802]
[1645279310382,0.00301318,2745.4,2745.1,0.00234399]
[1645279311379,0.21886766,2745.5,2745.1,0.00234399]
[1645279311577,0.00301318,2745.4,2745.1,0.00234399]
[1645279312329,0.22188084,2745.4,2745.1,0.00234399]
[1645279312533,0.21886766,2745.4,2745.1,0.00234399]
[1645279312730,0.22179298,2745.4,2745.1,0.00234399]
[1645279313235,0.22179298,2745.4,2745.1,0.00421124]
[1645279313236,0.21886766,2745.3,2745.1,0.00421124]
[1645279313430,0.00292532,2745.4,2745.2,1.30424403]
[1645279313630,0.00292532,2745.4,2745.1,0.00421124]
[1645279313631,0.21968503,2745.5,2745.3,1.30424403]
[1645279313829,0.21968503,2745.5,2745.1,0.00421124]
[1645279314030,0.21968503,2745.5,2745.3,0.51386174]
[1645279314232,0.21968503,2745.5,2745.4,1.30424403]
[1645279314432,0.21968503,2745.5,2745.1,0.00421124]
[1645279314630,0.21968503,2745.5,2745.2,1.30758245]
[1645279315231,0.00292531,2745.4,2745.2,1.30758245]
[1645279315737,0.00292531,2745.4,2745.1,0.00421124]
[1645279316175,0.21968503,2745.4,2745.1,0.00421124]
[1645279316378,0.22376811,2745.4,2745.1,0.00421124]
[1645279316777,0.22376811,2745.4,2745.2,1.30685329]
[1645279316980,0.25014582,2745.4,2745.2,1.30685329]
[1645279317176,0.21968503,2745.3,2745.2,1.30685329]
[1645279318579,0.21968503,2745.3,2745.2,1.93791885]
[1645279318780,0.21968503,2745.3,2745.2,2.23791885]
[1645279318980,0.21968181,2745.3,2745.2,2.23791885]
[1645279319182,0.08547671,2745.4,2745.2,2.23791885]
[1645279319380,0.08547671,2745.4,2745.3,1.30685329]
[1645279319624,0.30332948,2745.4,2745.3,1.30685329]
[1645279319826,0.02750796,2745.5,2745.3,4.80685329]
[1645279320029,0.00182212,2745.4,2745.3,2.34802]
[1645279320230,0.00182212,2745.4,2745.3,3.83531691]
[1645279320428,0.00113025,2745.9,2745.4,9.0]
[1645279320629,0.00113025,2745.9,2745.5,2.01429691]
[1645279320933,0.00113025,2745.9,2745.6,1.30519691]
[1645279321131,0.00113025,2745.9,2745.7,2.29957865]
[1645279321329,0.00113025,2745.9,2745.8,1.30519691]
[1645279322129,0.00113025,2745.9,2745.8,1.30042678]
[1645279323883,0.00332444,2746.0,2745.9,0.00080792]
[1645279324488,0.05388567,2746.3,2745.9,0.00080792]
[1645279324688,0.00332441,2746.1,2745.9,0.00080792]
[1645279325788,0.05388567,2746.3,2745.9,0.00080792]
[1645279325994,0.0033244,2746.1,2745.9,0.00080792]
[1645279326993,0.05388567,2746.3,2745.9,0.00080792]
[1645279327238,0.0033244,2746.1,2745.9,0.00080792]
[1645279328038,0.69262798,2746.2,2745.9,0.00080792]
[1645279328240,0.69262798,2746.1,2745.9,0.00080792]
[1645279328436,0.69262798,2746.0,2745.9,0.00080792]
[1645279330337,1.00332441,2746.1,2745.9,0.00080792]
[1645279330637,1.0,2746.1,2745.9,0.00080792]
[1645279330885,0.00332441,2746.1,2745.9,0.00080792]
[1645279331684,1.91094,2746.1,2745.9,0.00080792]
[1645279331881,0.9142644,2746.1,2745.9,0.00080792]
[1645279332079,1.9142644,2746.1,2745.9,0.00080792]
[1645279332481,1.0033244,2746.1,2745.9,0.00080792]
[1645279332883,2.11024481,2746.2,2745.9,0.00080792]
[1645279333085,0.92554607,2746.2,2745.9,0.00080792]
[1645279333282,0.0033244,2746.1,2745.9,0.00080792]
[1645279334082,1.92554607,2746.2,2745.9,0.00080792]
[1645279334083,0.69311867,2746.0,2745.9,0.00080792]
[1645279335540,0.00332441,2746.1,2745.9,0.00080792]
[1645279336443,0.05275542,2746.3,2745.9,0.00080792]
[1645279336844,0.0033244,2746.1,2745.9,0.00080792]
[1645279337640,0.74589462,2746.3,2745.9,0.00080792]
[1645279338039,0.0033244,2746.1,2745.9,0.00080792]
[1645279338876,0.05275542,2746.3,2745.9,0.00080792]
[1645279339082,0.0033244,2746.1,2745.9,0.00080792]
[1645279340177,0.05275542,2746.3,2745.9,0.00080792]
[1645279342337,0.22042399,2746.2,2745.9,0.00080792]
[1645279342736,0.22374512,2746.2,2745.9,0.00080792]
[1645279343544,0.22042399,2746.1,2745.9,0.00080792]
[1645279343738,0.22042399,2746.2,2745.9,0.00080792]
[1645279343939,0.22042399,2746.1,2745.9,0.00080792]
[1645279344540,0.22042399,2746.0,2745.9,0.00080792]
[1645279345038,0.00717601,2746.2,2745.9,0.00080792]
[1645279345039,0.22374517,2746.1,2745.9,0.00080792]
[1645279345239,0.22042399,2746.0,2745.9,0.00080792]
[1645279346180,1.648e-05,2745.9,2745.5,1.30572195]
[1645279346378,1.648e-05,2745.9,2745.4,0.1819]
[1645279346577,0.55983323,2745.9,2745.5,1.3061638]
[1645279346777,0.22042399,2745.8,2745.5,1.3061638]
[1645279347181,0.22042399,2745.8,2745.4,0.1819]
[1645279347580,0.22042399,2745.8,2744.9,0.52895391]
[1645279347581,0.22374525,2745.8,2744.9,0.52895391]
[1645279347782,0.22042399,2745.7,2745.2,1.30618795]
[1645279347979,0.22042399,2745.6,2745.2,1.30618795]
[1645279348181,0.22042399,2745.5,2745.2,1.30618795]
[1645279348381,0.22042399,2745.4,2745.2,1.30618795]
[1645279348679,4.19646046,2745.8,2745.2,1.30618795]
[1645279348680,0.22042399,2745.3,2745.2,1.30618795]
[1645279349078,0.00332134,2745.5,2745.2,1.30618795]
[1645279349484,0.22374533,2745.5,2745.2,1.30618795]
[1645279349733,0.22042399,2745.4,2745.2,1.30618795]
[1645279349929,4.1931392,2745.8,2745.2,1.30618795]
[1645279349930,0.22042399,2745.3,2745.2,1.30618795]
[1645279350133,0.00332129,2745.5,2745.2,1.30618795]
[1645279350532,0.22374528,2745.5,2745.2,1.30618795]
[1645279350733,0.22042399,2745.4,2745.2,1.30618795]
[1645279350935,0.22042399,2745.3,2745.2,1.30618795]
[1645279351133,0.22042399,2745.3,2745.2,1.85651031]
[1645279351332,0.00306427,2745.5,2745.2,1.85651031]
[1645279351534,0.00306427,2745.5,2745.3,1.30618795]
[1645279352139,0.22042399,2745.6,2745.3,1.30618795]
[1645279352334,0.2234883,2745.5,2745.3,1.30618795]
[1645279352535,0.22042399,2745.4,2745.3,1.30618795]
[1645279352735,0.00306431,2745.5,2745.3,1.30618795]
[1645279353377,0.22042399,2745.8,2745.3,1.30618795]
[1645279353576,0.00306431,2745.5,2745.3,1.30618795]
[1645279354580,0.22042399,2745.8,2745.3,1.30618795]
[1645279354882,0.00306431,2745.5,2745.3,1.30618795]
[1645279355678,0.22042399,2745.8,2745.3,1.30618795]
[1645279356077,0.00308161,2745.5,2745.3,1.30618795]
[1645279356878,0.22042399,2745.8,2745.3,1.30618795]
[1645279357128,0.00308161,2745.5,2745.3,1.30618795]
[1645279357927,0.00308161,2745.5,2744.9,0.52895391]
[1645279358129,0.91356319,2745.8,2745.2,1.30744799]
[1645279358329,0.00308161,2745.5,2745.2,1.20744799]
[1645279359330,0.6931392,2745.8,2745.2,1.20744799]
[1645279359533,0.0030804,2745.5,2745.2,1.20744799]
[1645279360429,4.1931392,2745.7,2745.2,1.20744799]
[1645279360631,0.6931392,2745.8,2745.2,1.20744799]
[1645279360883,0.0030804,2745.5,2745.2,1.20744799]
[1645279361679,1.25297243,2745.9,2745.2,1.20744799]
[1645279361882,0.69315568,2745.9,2745.2,1.20744799]
[1645279362080,0.0030804,2745.5,2745.2,1.20744799]
[1645279362283,0.0030804,2745.5,2745.2,1.80744799]
[1645279362594,0.0030804,2745.5,2745.2,0.68611616]
[1645279362782,0.0030804,2745.5,2745.3,0.57661442]
[1645279362983,1.648e-05,2745.9,2745.2,0.38611616]
[1645279363183,0.00308048,2745.5,2745.3,0.3]
[1645279363380,0.00308048,2745.5,2745.2,0.08611616]
[1645279363982,1.648e-05,2745.9,2745.7,0.00219114]
[1645279366840,0.00230502,2745.9,2745.7,0.00219114]
[1645279367644,1.648e-05,2745.9,2745.7,0.00219114]
[1645279368041,0.00309919,2745.9,2745.7,0.00219114]
[1645279368241,0.6820347,2745.8,2745.7,0.00219114]
[1645279368486,1.3751739,2745.8,2745.7,0.00219114]
[1645279368884,0.6820347,2745.8,2745.7,0.00219114]
[1645279372734,1.60758077,2745.8,2745.7,0.00219114]
[1645279372938,0.6820347,2745.8,2745.7,0.00219114]
[1645279373734,0.92556255,2745.9,2745.7,0.00219114]
[1645279373934,0.69379731,2745.8,2745.7,0.00219114]
[1645279374538,0.69379731,2745.8,2745.0,24.9976567]
[1645279374738,0.69379731,2745.8,2745.3,0.65688816]
[1645279375137,0.00308048,2745.6,2745.3,0.65688816]
[1645279375337,0.00308048,2745.6,2745.0,24.9976567]
[1645279376183,0.69379731,2745.7,2745.0,24.9976567]
[1645279376382,0.0030804,2745.6,2745.2,0.50830313]
[1645279377185,0.0030804,2745.6,2745.0,24.9976567]
[1645279377389,0.69379731,2745.7,2745.0,24.9976567]
[1645279377586,0.00308048,2745.6,2745.0,24.9976567]
[1645279378487,0.69379731,2745.7,2745.3,0.61223461]
[1645279378689,0.0030804,2745.6,2745.3,0.61223461]
[1645279378889,0.22587228,2745.6,2745.4,1.30685037]
[1645279379088,0.0030804,2745.6,2745.4,1.30685037]
[1645279379729,0.22279188,2745.7,2745.4,1.30685037]
[1645279379933,0.22587244,2745.6,2745.4,1.30685037]
[1645279380132,0.00308056,2745.6,2745.4,1.30685037]
[1645279380833,0.22279188,2745.8,2745.4,1.30685037]
[1645279381029,0.22279188,2745.7,2745.4,1.30685037]
[1645279381231,0.22587244,2745.6,2745.4,1.30685037]
[1645279381432,0.22279188,2745.5,2745.0,24.9976567]
[1645279381631,0.22279188,2745.4,2745.1,1.30755798]
[1645279381832,0.22279188,2745.3,2745.1,1.30755798]
[1645279382131,0.22279188,2745.2,2745.1,1.30755798]
[1645279382430,0.00308036,2745.6,2745.1,1.60755798]
[1645279382638,0.00308036,2745.6,2745.2,1.30755798]
[1645279383230,0.91658919,2745.8,2745.2,1.30755798]
[1645279383231,0.22279188,2745.7,2745.2,1.30755798]
[1645279383485,0.22587236,2745.6,2745.2,1.30755798]
[1645279383982,0.22279188,2745.5,2745.2,1.30755798]
[1645279384184,0.22279188,2745.4,2745.2,1.30755798]
[1645279384384,0.00308048,2745.6,2745.2,1.30755798]
[1645279384583,0.69381379,2745.9,2745.2,1.30755798]
[1645279384784,0.0030804,2745.6,2745.2,1.30755798]
[1645279385682,0.22281853,2745.8,2745.2,1.30755798]
[1645279385881,0.69381379,2745.9,2745.2,1.30755798]
[1645279385882,0.22281853,2745.7,2745.2,1.30755798]
[1645279386086,0.22589901,2745.6,2745.2,1.30755798]
[1645279386283,0.22281853,2745.5,2745.2,1.30755798]
[1645279386783,0.22297966,2745.4,2745.2,1.30755798]
[1645279387129,0.00308048,2745.6,2745.2,1.30755798]
[1645279387130,0.22298234,2745.3,2745.2,1.30755798]
[1645279387331,0.00308048,2745.6,2745.2,1.30755798]
[1645279387332,0.00308044,2745.6,2745.2,1.30755798]
[1645279387534,0.00308044,2745.6,2745.3,1.30755798]
[1645279387535,0.69687775,2745.6,2745.3,1.30755798]
[1645279387734,0.37799665,2745.1,2745.0,24.9976567]
[1645279387936,0.60102496,2745.1,2745.0,26.30502068]
[1645279389133,0.60102496,2745.1,2745.0,26.97105146]
[1645279393190,0.60112667,2745.1,2745.0,26.97069099]
[1645279400888,0.60112667,2745.1,2745.0,26.30466021]
[1645279407788,0.6038192,2745.1,2745.0,26.30466021]
[1645279408087,0.60382027,2745.1,2745.0,26.30466021]
[1645279408283,0.37799665,2745.1,2745.0,26.30466021]
[1645279408485,0.60379261,2745.1,2745.0,26.30466021]
[1645279408684,0.60394676,2745.1,2745.0,26.30466021]
[1645279408884,0.6039463,2745.1,2745.0,26.30466021]
[1645279409084,0.60393296,2745.1,2745.0,26.30466021]
[1645279409283,0.60393436,2745.1,2745.0,26.30466021]
[1645279409483,0.60393571,2745.1,2745.0,26.30466021]
[1645279409732,0.37799665,2745.1,2745.0,26.30466021]
[1645279409929,0.60394892,2745.1,2745.0,26.30466021]
[1645279410230,0.37799665,2745.1,2745.0,26.30466021]
[1645279410630,0.60395238,2745.1,2745.0,26.30466021]
[1645279410831,0.37799665,2745.1,2745.0,26.30466021]
[1645279411032,0.60396145,2745.1,2745.0,26.30466021]
[1645279411232,0.37799665,2745.1,2745.0,26.30466021]
[1645279411630,0.60402539,2745.1,2745.0,26.30466021]
[1645279411831,0.37799665,2745.1,2745.0,26.30466021]
[1645279412031,0.6041371,2745.1,2745.0,26.30466021]
[1645279412238,0.60417818,2745.1,2745.0,26.30466021]
[1645279412434,0.60417818,2745.1,2745.0,26.30186929]
[1645279412632,0.60417818,2745.1,2745.0,26.30187754]
[1645279412831,0.60417818,2745.1,2745.0,24.9976567]
[1645279413235,0.60417818,2745.1,2745.0,26.30185115]
[1645279413683,0.60417818,2745.1,2745.0,24.9976567]
[1645279413882,0.60417818,2745.1,2745.0,26.30199372]
[1645279414084,1.31815721,2745.1,2745.0,26.30146678]
[1645279414381,1.31815721,2745.1,2745.0,24.9976567]
[1645279414586,1.31815721,2745.1,2745.0,23.34569227]
[1645279414587,5.51195452,2745.1,2745.0,23.34569227]
[1645279414788,5.51299719,2745.1,2745.0,23.34569227]
[1645279415485,4.81815721,2745.1,2745.0,23.34569227]
[1645279415683,2.01299823,2745.1,2745.0,23.34569227]
[1645279416484,1.31815721,2745.1,2745.0,23.34569227]
[1645279417733,2.01299823,2745.1,2745.0,23.34569227]
[1645279418634,1.31815721,2745.1,2745.0,23.34569227]
[1645279418934,2.01229859,2745.1,2745.0,23.34569227]
[1645279419941,5.51229859,2745.1,2745.0,23.34569227]
[1645279420879,4.81815721,2745.1,2745.0,23.34569227]
[1645279421081,7.01715721,2745.1,2745.0,23.34569227]
[1645279421282,8.01715721,2745.1,2745.0,23.34569227]
[1645279421880,13.01715721,2745.1,2745.0,23.34569227]
[1645279422086,13.94270328,2745.1,2745.0,23.34569227]
[1645279422787,8.94270328,2745.1,2745.0,23.34569227]
[1645279423084,8.01715721,2745.1,2745.0,23.34569227]
[1645279423284,8.01715721,2745.1,2744.5,2.533e-05]
[1645279423285,13.66551181,2745.0,2744.5,2.533e-05]
[1645279423487,5.0,2744.6,2744.5,2.533e-05]
[1645279423685,1.16763289,2744.6,2744.5,2.533e-05]
[1645279423884,2.64712587,2744.6,2744.5,2.533e-05]
[1645279424087,0.40567451,2744.6,2744.5,2.533e-05]
[1645279424285,0.40567451,2744.6,2743.4,0.67041139]
[1645279424286,0.9195267,2744.6,2743.4,0.67041139]
[1645279424483,1.1897,2744.7,2743.5,1.98363228]
[1645279424484,0.22618153,2744.5,2743.5,1.98363228]
[1645279424730,0.22618153,2744.4,2743.6,1.31322089]
[1645279424931,0.22618153,2744.3,2743.6,1.31322089]
[1645279425133,0.22618153,2744.2,2743.6,1.61322089]
[1645279425330,0.22618153,2744.1,2743.7,1.31322089]
[1645279425530,0.22618153,2744.0,2743.7,1.31322089]
[1645279425733,5.0,2744.6,2743.7,1.31322089]
[1645279425734,0.22618153,2743.9,2743.7,1.31322089]
[1645279425932,3.5,2744.6,2743.7,1.31322089]
[1645279426132,0.21474045,2744.5,2743.7,1.31322089]
[1645279426634,0.21474045,2744.4,2743.7,1.31322089]
[1645279426830,3.67958687,2744.8,2744.0,0.00263035]
[1645279426831,0.21474045,2744.3,2744.0,0.00263035]
[1645279427030,0.21474045,2744.2,2744.0,0.00263035]
[1645279427230,0.21474045,2744.1,2744.0,0.00263035]
[1645279427634,0.21474045,2744.7,2744.0,0.00263035]
[1645279427832,0.21474045,2744.6,2743.7,1.31322089]
[1645279428030,0.21474045,2744.5,2743.9,0.00204418]
[1645279428402,0.21474045,2744.4,2743.9,0.00204418]
[1645279428601,3.21767249,2744.8,2743.9,0.00204418]
[1645279428800,0.69334517,2744.8,2743.9,0.00204418]
[1645279429003,0.69334517,2744.8,2743.8,3.5]
[1645279429204,0.69334517,2744.8,2743.6,4.16135731]
[1645279429404,3.08524529,2744.9,2744.2,0.00204396]
[1645279429806,3.77859046,2744.9,2744.2,0.00204396]
[1645279430002,3.08524529,2744.9,2744.2,0.00204396]
[1645279430212,3.77544517,2744.9,2743.6,5.67256051]
[1645279430508,3.77859064,2744.9,2744.4,0.00204385]
[1645279430705,3.26734547,2744.9,2744.4,0.00204385]
[1645279431310,9.19334517,2744.8,2744.4,0.00204385]
[1645279431509,0.64334517,2744.7,2743.5,1.1371]
[1645279431807,0.64334517,2744.7,2744.4,0.00204385]
[1645279431808,4.41143,2744.6,2744.4,0.00204385]
[1645279432008,0.1942293,2744.7,2744.4,0.00204385]
[1645279432239,4.5,2744.8,2744.4,0.00204385]
[1645279432436,0.64145136,2744.7,2744.4,0.00204385]
[1645279432635,3.5,2744.6,2743.5,1.67396631]
[1645279432841,3.5,2744.6,2743.7,0.00868256]
[1645279432842,0.60483032,2744.2,2743.7,0.00868256]
[1645279433034,3.5,2744.6,2743.7,0.00868256]
[1645279433635,1.60357278,2744.7,2743.7,0.00868256]
[1645279433836,1.2333,2744.7,2743.5,1.97396631]
[1645279434036,1.2333,2744.7,2743.5,2.27396631]
[1645279434037,0.69950183,2744.2,2743.5,2.27396631]
[1645279434237,0.69950183,2744.2,2744.0,0.00217037]
[1645279434435,1.2333,2744.7,2744.0,0.00217037]
[1645279434636,3.27307413,2744.9,2744.0,0.00217037]
[1645279434937,3.08528297,2744.9,2744.0,0.00217037]
[1645279435135,3.0821,2744.9,2743.5,1.67396631]
[1645279435336,3.0821,2744.9,2744.3,0.00217014]
[1645279435337,0.70393049,2744.4,2744.3,0.00217014]
[1645279435735,1.1499,2744.8,2744.3,0.00217014]
[1645279436182,1.1499,2744.8,2743.6,1.91123]
[1645279436382,1.1499,2744.8,2743.7,0.1822]
[1645279436582,1.1499,2744.8,2744.4,0.00214169]
[1645279436882,0.58287911,2744.5,2744.4,0.00214169]
[1645279437284,0.58287911,2744.5,2744.4,0.00134169]
[1645279437483,0.58287911,2744.5,2743.6,0.4821]
[1645279437688,0.58287911,2744.5,2744.3,0.00214173]
[1645279438681,0.58287911,2744.5,2743.6,0.1821]
[1645279439283,0.58287911,2744.5,2743.5,1.67396631]
[1645279439483,0.58287911,2744.5,2743.5,1.97396631]
[1645279439735,0.58287911,2744.5,2743.5,2.27396631]
[1645279440132,0.58287911,2744.5,2743.9,0.00214647]
[1645279441132,0.58287911,2744.5,2743.5,1.1371]
[1645279441331,0.58287911,2744.5,2744.1,0.00214632]
[1645279442241,0.58287911,2744.5,2743.8,0.57961733]
[1645279442433,0.58287911,2744.5,2743.5,2.04837]
[1645279442633,0.58287911,2744.5,2744.2,0.00214624]
[1645279443481,0.58287911,2744.5,2743.6,0.3]
[1645279443680,0.58287911,2744.5,2744.2,0.00214521]
[1645279444282,4.08287911,2744.5,2744.2,0.00214521]
[1645279444681,0.58287911,2744.5,2743.5,1.1371]
[1645279444883,4.08287911,2744.5,2744.2,0.00214521]
[1645279445081,0.58287911,2744.5,2744.2,0.00214521]
[1645279445891,4.08287911,2744.5,2743.5,1.1371]
[1645279446086,4.08287911,2744.5,2743.5,1.09782777]
[1645279446286,6.0,2744.4,2743.5,1.09782777]
[1645279446785,4.08287911,2744.5,2743.5,1.09782777]
[1645279447435,4.08287911,2744.5,2743.2,1.1522]
[1645279447436,5.0,2744.2,2743.2,1.1522]
[1645279447636,5.0,2744.2,2743.1,7.49]
[1645279447637,5.0,2744.0,2743.1,7.49]
[1645279447837,4.83393383,2743.9,2743.1,7.49]
[1645279448232,1.33393383,2743.9,2743.1,7.49]
[1645279448440,0.70983991,2743.2,2743.1,7.49]
[1645279448633,0.70983991,2743.2,2742.8,2.95040074]
[1645279448634,0.91963502,2743.2,2742.8,0.00270074]
[1645279448937,0.91963502,2743.2,2742.6,0.00270074]
[1645279448938,0.20979511,2743.1,2742.6,0.00270074]
[1645279449133,0.20979511,2743.1,2742.4,1.31823546]
[1645279449534,1.12173511,2743.1,2742.4,1.31823546]
[1645279449731,3.6822,2743.4,2742.6,0.58786817]
[1645279449732,0.1822,2743.4,2742.6,0.58786817]
[1645279449937,0.20977267,2743.3,2742.7,1.31823546]
[1645279450130,1.2037,2743.6,2742.8,0.00270074]
[1645279450330,0.18546652,2743.7,2742.8,0.00270074]
[1645279450331,0.20981163,2743.5,2742.8,0.00270074]
[1645279450535,0.50715565,2743.3,2742.8,0.00270074]
[1645279450990,0.50715565,2743.3,2743.1,0.00260238]
[1645279451189,0.20963612,2743.2,2743.1,0.00260238]
[1645279451783,0.20963612,2743.2,2742.5,0.00270074]
[1645279451983,0.20963612,2743.2,2742.5,1.31720268]
[1645279452186,0.20963612,2743.2,2743.0,0.00260243]
[1645279452785,0.50715565,2743.3,2743.0,0.00260243]
[1645279452986,0.20955214,2743.2,2742.5,0.00270074]
[1645279453288,0.20955214,2743.2,2743.0,0.00260248]
[1645279454392,1.66999993,2743.3,2742.4,0.00267687]
[1645279454634,1.66999993,2743.3,2743.0,0.00260248]
[1645279455037,6.16999993,2743.3,2743.0,0.00260248]
[1645279455240,1.66999993,2743.3,2743.0,0.00260248]
[1645279455437,1.66999993,2743.3,2742.4,0.00267687]
[1645279455837,1.66999993,2743.3,2743.0,0.00260243]
[1645279456639,1.66999993,2743.3,2742.3,0.00267687]
[1645279456842,1.66999993,2743.3,2743.0,0.00260243]
[1645279457744,5.16999993,2743.3,2743.0,0.00260243]
[1645279457942,0.0008,2742.9,2742.3,0.00267687]
[1645279458383,0.0008,2742.9,2742.6,0.01041129]
[1645279458984,0.0008,2742.9,2742.3,0.00267687]
[1645279459386,0.0008,2742.9,2742.6,0.00260281]
[1645279460388,0.0008,2742.9,2742.3,0.00267687]
[1645279460587,0.0008,2742.9,2742.6,0.00260281]
[1645279461391,0.0008,2742.9,2742.3,0.00267687]
[1645279461789,0.0008,2742.9,2742.6,0.00260281]
[1645279462739,0.64145136,2742.8,2741.9,0.00267687]
[1645279463033,0.64145136,2742.8,2742.6,0.00260281]
[1645279463233,0.13636425,2742.9,2742.6,0.00260281]
[1645279463432,0.0008,2742.9,2742.6,0.00260281]
[1645279463837,0.0008,2742.9,2741.9,0.70470052]
[1645279464033,0.0008,2742.9,2742.6,0.00260281]
[1645279465436,1.0008,2742.9,2742.6,0.00260281]
[1645279465632,0.0008,2742.9,2742.6,0.00260281]
[1645279466287,0.0008,2742.9,2742.1,0.00267687]
[1645279466492,0.0008,2742.9,2742.6,0.00260281]
[1645279467488,0.0008,2742.9,2742.1,0.00267687]
[1645279467689,0.0008,2742.9,2742.6,0.00260281]
[1645279468291,3.5008,2742.9,2742.6,0.00260281]
[1645279468689,3.5008,2742.9,2742.1,0.00267687]
[1645279468690,1.0,2742.8,2742.1,0.00267687]
[1645279468993,1.0,2742.8,2742.6,0.00260281]
[1645279469839,0.1694161,2742.9,2742.1,0.00267687]
[1645279470039,0.1694161,2742.9,2742.6,0.00260286]
[1645279470040,0.0008,2742.9,2742.6,0.00260286]
[1645279471037,0.0008,2742.9,2742.1,0.00267687]
[1645279471239,0.0008,2742.9,2742.6,0.00260281]
[1645279472238,0.0008,2742.9,2742.3,0.00267687]
[1645279472440,0.0008,2742.9,2742.6,0.00260281]
[1645279473489,0.0008,2742.9,2742.3,0.00267687]
[1645279473685,3.71303967,2742.9,2742.6,0.00260281]
[1645279473886,3.5008,2742.9,2742.6,0.00260281]
[1645279474291,1.64145136,2742.8,2742.6,0.00260281]
[1645279474786,1.64145136,2742.8,2742.2,0.00267687]
[1645279474990,1.64145136,2742.8,2742.6,0.00260286]
[1645279475789,1.64145136,2742.8,2742.2,0.00267687]
[1645279475790,0.64145136,2742.8,2742.2,0.00267687]
[1645279476189,0.18042455,2742.9,2742.6,0.00260286]
[1645279476395,2.24030271,2743.6,2742.6,0.00260286]
[1645279476595,0.21220812,2743.5,2742.6,0.00260286]
[1645279476991,0.21220812,2743.5,2742.7,0.1822]
[1645279477241,0.21220812,2743.5,2743.2,0.64587421]
[1645279477436,1.8679,2743.6,2743.2,0.64587421]
[1645279477638,0.8425224,2744.2,2743.2,0.64587421]
[1645279477639,0.69580331,2744.2,2743.2,0.64587421]
[1645279477839,0.21213117,2744.1,2743.2,0.64587421]
[1645279478040,0.21213117,2744.0,2743.2,0.64587421]
[1645279478237,0.21213117,2743.9,2743.2,0.64587421]
[1645279478438,1.36753989,2744.3,2743.2,0.64587421]
[1645279478439,0.21213117,2743.8,2743.2,0.64587421]
[1645279478636,0.21213117,2743.7,2743.5,0.00260196]
[1645279478836,0.21213117,2743.6,2743.5,0.00180196]
[1645279479039,0.21213117,2744.0,2743.5,0.00180196]
[1645279479237,0.21213117,2743.9,2743.5,0.00180196]
[1645279479440,0.21213117,2743.9,2743.2,0.64587421]
[1645279479441,0.21213117,2744.0,2743.2,0.64587421]
[1645279479636,0.21213117,2743.9,2743.2,0.64587421]
[1645279479839,0.21213117,2743.8,2743.2,0.64587421]
[1645279480040,0.21213117,2743.7,2743.2,0.64587421]
[1645279480242,1.0,2744.4,2743.3,3.8]
[1645279480243,0.69248247,2744.4,2743.3,3.8]
[1645279480440,0.69248247,2744.4,2743.3,4.5885]
[1645279480893,0.2121978,2744.3,2743.3,4.7707]
[1645279481089,2.69088247,2744.6,2743.3,4.7707]
[1645279481090,0.2121978,2744.2,2743.3,4.7707]
[1645279481290,0.64971368,2744.4,2743.3,4.7707]
[1645279481589,0.2121978,2744.1,2743.3,4.5207]
[1645279481789,0.64971368,2744.4,2743.3,1.0207]
[1645279481790,0.2121978,2744.0,2743.3,1.0207]
[1645279481993,0.2121978,2743.9,2743.3,1.0207]
[1645279482196,0.2121978,2743.8,2743.3,1.3207]
[1645279482388,0.64971368,2744.4,2743.3,0.8385]
[1645279482596,0.23485898,2744.3,2743.3,0.8385]
[1645279482793,3.73485898,2744.3,2743.3,0.8385]
[1645279482992,0.23485898,2744.2,2743.3,0.8385]
[1645279483293,0.0033216,2744.1,2743.5,0.00260001]
[1645279484292,0.23485898,2744.2,2743.3,0.8385]
[1645279484737,0.92734145,2744.2,2743.3,0.8385]
[1645279485035,0.69248247,2743.9,2743.3,0.8385]
[1645279485239,4.42734145,2743.8,2743.3,0.8385]
[1645279485435,4.64662898,2743.7,2743.3,0.8385]
[1645279485735,0.23485898,2743.6,2743.3,0.8385]
[1645279485936,0.5661259,2743.5,2743.3,0.8385]
[1645279486136,3.73485898,2743.4,2743.3,0.8385]
[1645279486935,0.23485898,2743.4,2743.3,0.8385]
[1645279490899,0.5661259,2743.5,2743.3,0.8385]
[1645279490900,1.49346735,2743.5,2743.3,0.8385]
[1645279491100,0.23485898,2743.4,2743.3,0.8385]
[1645279492137,0.23485898,2743.4,2743.2,0.00258793]
[1645279492742,0.23485898,2743.4,2742.9,1.29021725]
[1645279492939,0.23485898,2743.4,2742.7,0.00267687]
[1645279493139,0.23485898,2743.4,2743.2,0.00258798]
[1645279493941,0.23485898,2743.4,2742.9,1.29012964]
[1645279494142,0.69248247,2743.5,2743.2,0.0025944]
[1645279494143,0.23485898,2743.3,2743.2,0.0025944]
[1645279494541,0.69248247,2743.5,2743.2,0.0025944]
[1645279494744,0.92734145,2743.4,2743.2,0.0025944]
[1645279494946,0.23485898,2743.3,2743.2,0.0025944]